fUSD/lending_fUSD_20260324
["ID","MTS","AMOUNT","RATE_DAILY","PERIOD"]
[408851493,1774338851328,-1168.04,0.00046027,120]
[408851494,1774338851338,-532.48,0.00046027,120]
[408851495,1774338851348,-1084.15,0.00046027,120]
[408851496,1774338851358,-1543.41,0.00046027,120]
[408851497,1774338851368,-1735.5,0.00046027,120]
[408851498,1774338851378,-524.04,0.00046027,120]
[408851499,1774338851388,-528.45,0.00046027,120]
[408851500,1774338851399,-507.54,0.00046027,60]
[408851501,1774338851422,-1522.45,0.00046027,120]
[408851502,1774338851442,-1728.67,0.00046027,120]
[408851503,1774338851457,-1193.94,0.00046027,120]
[408851504,1774338851475,-2483.59,0.00046027,120]
[408851505,1774338851494,-1145.4,0.00046027,120]
[408851506,1774338851513,-785.33,0.00046027,120]
[408851507,1774338851532,-802.88,0.00046027,120]
[408851508,1774338851550,-773.31,0.00046027,120]
[408851509,1774338851569,-504.31,0.00046027,120]
[408851510,1774338851588,-1766.83,0.00046027,120]
[408851511,1774338851606,-766.14,0.00046027,120]
[408851512,1774338851626,-655.33,0.00046027,120]
[408851513,1774338851644,-500.0,0.00046027,120]
[408851514,1774338851663,-8117.29,0.00046027,120]
[408851515,1774338851678,-1429.82,0.00046027,120]
[408851516,1774338851688,-500.0,0.00046027,120]
[408851517,1774338851697,-1503.53,0.00046027,120]
[408851518,1774338851706,-1630.29,0.00046027,120]
[408851519,1774338851715,-841.35,0.00046027,120]
[408851520,1774338851724,-673.28,0.00046027,120]
[408851521,1774338851733,-1387.91,0.00046027,120]
[408851522,1774338851742,-500.0,0.00046027,7]
[408851523,1774338851751,-604.72,0.00046027,120]
[408851524,1774338851760,-680.83,0.00046027,120]
[408851525,1774338851769,-1280.15,0.00046027,120]
[408851526,1774338851779,-1687.32,0.00046027,120]
[408851527,1774338851789,-553.79,0.00046027,120]
[408851528,1774338851798,-500.0,0.00046027,120]
[408851529,1774338851808,-500.0,0.00046027,120]
[408851530,1774338851819,-583.19,0.00046027,120]
[408851531,1774338851828,-500.0,0.00046027,120]
[408851532,1774338851838,-582.8037937,0.00046027,120]
[408851533,1774338851848,-765.82,0.00046027,120]
[408851534,1774338851858,-500.0,0.00046027,120]
[408851535,1774338851868,-2264.25,0.00046027,120]
[408851536,1774338851877,-1037.3,0.00046027,30]
[408851537,1774338851887,-1021.05,0.00046027,120]
[408851538,1774338851896,-2339.0,0.00046027,120]
[408851539,1774338851906,-602.59,0.00046027,120]
[408851540,1774338851916,-1084.43,0.00046027,120]
[408851541,1774338851926,-1040.73,0.00046027,120]
[408851542,1774338851935,-851.46,0.00046027,120]
[408851543,1774338851945,-1082.75,0.00046027,120]
[408851544,1774338851954,-1633.66,0.00046027,120]
[408851545,1774338851964,-4460.36,0.00046027,120]
[408851546,1774338851973,-1090.06,0.00046027,120]
[408851547,1774338851983,-1298.83,0.00046027,120]
[408851548,1774338851992,-545.35,0.00046027,120]
[408851549,1774338852002,-911.41,0.00046027,120]
[408851550,1774338852012,-1399.28,0.00046027,120]
[408851551,1774338852028,-637.83,0.00046027,120]
[408851552,1774338852046,-863.52,0.00046027,60]
[408851553,1774338852065,-4326.06,0.00046027,120]
[408851554,1774338852085,-521.47,0.00046027,120]
[408851555,1774338852100,-500.0,0.00046027,14]
[408851556,1774338852119,-531.51377081,0.00046027,120]
[408851557,1774338852136,-1041.22,0.00046027,120]
[408851558,1774338852154,-500.0,0.00046027,120]
[408851559,1774338852171,-711.52,0.00046027,120]
[408851560,1774338852189,-2031.81,0.00046027,120]
[408851561,1774338852208,-790.74,0.00046027,120]
[408851562,1774338852224,-1154.84,0.00046027,120]
[408851563,1774338852240,-2348.54,0.00046027,120]
[408851564,1774338852260,-1560.13,0.00046027,120]
[408851565,1774338852274,-1067.59,0.00046027,120]
[408851566,1774338852292,-1104.3,0.00046027,120]
[408851567,1774338852310,-541.43,0.00046027,120]
[408851568,1774338852325,-292.76427646,0.00046027,120]
[408851569,1774338852351,-535.0,0.00046027,120]
[408851570,1774338852369,-858.21,0.00046027,120]
[408851571,1774338852386,-205.51860573,0.00046027,120]
[408851572,1774338852403,-1021.53,0.00046027,120]
[408851573,1774338852423,-1539.96,0.00046027,120]
[408851574,1774338852440,-592.83,0.00046027,120]
[408851575,1774338852457,-519.74,0.00046027,120]
[408851576,1774338852475,-813.09,0.00046027,120]
[408851577,1774338852493,-1598.49,0.00046027,120]
[408851578,1774338852509,-2149.78,0.00046027,120]
[408851579,1774338852526,-513.33,0.00046027,120]
[408851580,1774338852544,-833.01,0.00046027,120]
[408851581,1774338852560,-656.49,0.00046027,120]
[408851582,1774338852576,-700.59,0.00046027,120]
[408851583,1774338852592,-728.42,0.00046027,120]
[408851584,1774338852608,-851.0,0.00046027,120]
[408851585,1774338852625,-1000.49,0.0004608,120]
[408851586,1774338852641,-822.0,0.00046084,16]
[408851587,1774338852659,-2804.0,0.0004609,16]
[408851588,1774338852675,-92725.47652718,0.0004611,31]
[408851589,1774338852692,-2804.0,0.00046141,16]
[408851590,1774338852711,-485.91,0.00046143,30]
[408851591,1774338852728,-50000.0,0.0004615,120]
[408851592,1774338852745,-1530.1835,0.00046164,30]
[408851593,1774338852761,-250.0,0.00046192,120]
[408851594,1774338852777,-261.52,0.00046192,120]
[408851595,1774338852806,-236.52696824,0.000462,30]
[408851596,1774338852831,-239.44,0.000462,120]
[408851597,1774338852855,-150.0,0.00046219,120]
[408851598,1774338852881,-860000.0,0.0004624,120]
[408851599,1774338852905,-291.69532131,0.00046284,18]
[408851600,1774338852929,-50000.0,0.000463,120]
[408851601,1774338852953,-154.0,0.000463,120]
[408851602,1774338852977,-173.6963,0.000463,120]
[408851603,1774338853002,-5470.90349399,0.000463,60]
[408851604,1774338853027,-20220.6506325,0.000463,7]
[408851605,1774338853051,-276.3,0.000463,120]
[408851606,1774338853070,-3656.5343001,0.000463,2]
[408851607,1774338853087,-743.4779064,0.00046301,120]
[408851608,1774338853102,-590.67,0.00046301,120]
[408851609,1774338853118,-1000.0,0.00046301,120]
[408851610,1774338853134,-705.66,0.00046301,120]
[408851611,1774338853150,-943.74,0.00046301,120]
[408851612,1774338853166,-500.0,0.00046301,120]
[408851613,1774338853182,-507.3,0.00046301,120]
[408851614,1774338853198,-568.39,0.00046301,120]
[408851615,1774338853214,-729.64,0.00046301,120]
[408851616,1774338853232,-639.9,0.00046301,120]
[408851617,1774338853249,-651.21,0.00046301,120]
[408851618,1774338853265,-524.6,0.00046301,120]
[408851619,1774338853281,-978.66,0.00046301,120]
[408851620,1774338853296,-1180.13,0.00046301,120]
[408851621,1774338853310,-500.0,0.00046301,120]
[408851622,1774338853325,-574.37,0.00046301,120]
[408851623,1774338853341,-1281.45,0.00046301,120]
[408851624,1774338853356,-1329.75,0.00046301,120]
[408851625,1774338853370,-564.31662464,0.00046301,120]
[408851626,1774338853386,-880.66,0.00046301,5]
[408851627,1774338853400,-599.98,0.00046301,120]
[408851628,1774338853418,-651.22,0.00046301,120]
[408851629,1774338853433,-500.0,0.00046301,120]
[408851630,1774338853447,-539.9,0.00046301,120]
[408851631,1774338853463,-604.85,0.00046301,120]
[408851632,1774338853479,-1076.85,0.00046301,120]
[408851633,1774338853495,-766.13,0.00046301,120]
[408851634,1774338853510,-617.48,0.00046301,120]
[408851635,1774338853525,-500.0,0.00046301,120]
[408851636,1774338853540,-835.56,0.00046301,120]
[408851637,1774338853555,-792.41,0.00046301,120]
[408851638,1774338853571,-463.5302945,0.00046301,120]
[408851639,1774338853586,-1234.56,0.00046301,120]
[408851640,1774338853602,-890.18,0.00046301,120]
[408851641,1774338853619,-500.0,0.00046301,120]
[408851642,1774338853637,-1024.48,0.00046301,120]
[408851643,1774338853654,-500.0,0.00046301,120]
[408851644,1774338853672,-766.51,0.00046301,120]
[408851645,1774338853689,-677.14,0.00046301,120]
[408851646,1774338853706,-2135.18,0.00046301,120]
[408851647,1774338853721,-563.34,0.00046301,120]
[408851648,1774338853740,-1402.94,0.00046301,120]
[408851649,1774338853759,-761.77,0.00046301,120]
[408851650,1774338853778,-337.06867936,0.00046301,120]
[408851651,1774338853794,-1465.28,0.00046301,120]
[408851652,1774338853813,-500.0,0.00046301,120]
[408851653,1774338853829,-598.21,0.00046301,120]
[408851654,1774338853846,-1412.93,0.00046301,120]
[408851655,1774338853861,-500.0,0.00046301,120]
[408851656,1774338853878,-846.4,0.00046301,120]
[408851657,1774338853894,-500.0,0.00046301,120]
[408851658,1774338853911,-804.53,0.00046301,120]
[408851659,1774338853925,-862.09,0.00046301,120]
[408851660,1774338853941,-967.16,0.00046301,120]
[408851661,1774338853962,-649.68,0.00046301,120]
[408851662,1774338853979,-897.41,0.00046301,120]
[408851663,1774338853997,-1647.3,0.00046301,120]
[408851664,1774338854014,-319.36994398,0.00046301,120]
[408851665,1774338854031,-932.54,0.00046301,120]
[408851666,1774338854047,-1817.92,0.00046301,120]
[408851667,1774338854062,-500.0,0.00046301,120]
[408851668,1774338854077,-1328.91,0.00046301,120]
[408851669,1774338854096,-1294.19,0.00046301,120]
[408851670,1774338854114,-500.0,0.00046301,120]
[408851671,1774338854130,-3681.23,0.00046301,120]
[408851672,1774338854147,-644.74,0.00046301,120]
[408851673,1774338854163,-688.63,0.00046301,120]
[408851674,1774338854178,-572.14,0.00046301,120]
[408851675,1774338854192,-500.0,0.00046301,120]
[408851676,1774338854208,-1109.47,0.00046301,120]
[408851677,1774338854226,-1361.64,0.00046301,120]
[408851678,1774338854244,-451.73159688,0.00046301,120]
[408851679,1774338854261,-1113.98,0.00046301,120]
[408851680,1774338854274,-804.84,0.00046301,120]
[408851681,1774338854289,-587.8,0.00046301,120]
[408851682,1774338854303,-895.35,0.00046301,120]
[408851683,1774338854317,-640.6,0.00046301,120]
[408851684,1774338854332,-1353.62,0.00046301,120]
[408851685,1774338854346,-500.0,0.00046301,120]
[408851686,1774338854360,-663.05,0.00046301,120]
[408851687,1774338854374,-2022.99,0.00046301,120]
[408851688,1774338854388,-993.61,0.00046301,120]
[408851689,1774338854403,-526.3,0.00046301,120]
[408851690,1774338854421,-803.74,0.00046301,120]
[408851691,1774338854434,-500.0,0.00046301,120]
[408851692,1774338854449,-593.39,0.00046301,120]
[408851693,1774338854464,-773.48,0.00046301,120]
[408851694,1774338854479,-318.68749875,0.00046301,120]
[408851695,1774338854495,-500.0,0.00046301,120]
[408851696,1774338854509,-1169.17,0.00046301,120]
[408851697,1774338854522,-1339.98,0.00046301,120]
[408851698,1774338854537,-599.34,0.00046301,120]
[408851699,1774338854552,-1698.32,0.00046301,120]
[408851700,1774338854566,-551.15,0.00046301,120]
[408851701,1774338854581,-1450.66,0.00046301,120]
[408851702,1774338854595,-818.03,0.00046301,120]
[408851703,1774338854611,-620.94,0.00046301,2]
[408851704,1774338854626,-500.0,0.00046301,120]
[408851705,1774338854641,-500.0,0.00046301,120]
[408851706,1774338854656,-500.0,0.00046301,120]
[408851707,1774338854669,-1515.34,0.00046301,120]
[408851708,1774338854684,-4192.59,0.00046301,120]
[408851709,1774338854698,-2475.9,0.00046301,120]
[408851710,1774338854712,-500.0,0.00046301,120]
[408851711,1774338854727,-577.46441949,0.00046301,120]
[408851712,1774338854741,-2035.37,0.00046301,120]
[408851713,1774338854756,-1009.33,0.00046301,120]
[408851714,1774338854771,-857.75,0.00046301,120]
[408851715,1774338854785,-944.17,0.00046301,120]
[408851716,1774338854799,-1317.86,0.00046301,30]
[408851717,1774338854814,-826.35,0.00046301,120]
[408851718,1774338854828,-1144.87,0.00046301,120]
[408851719,1774338854842,-588.23,0.00046301,120]
[408851720,1774338854856,-500.0,0.00046301,120]
[408851721,1774338854870,-895.15,0.00046301,120]
[408851722,1774338854885,-1197.62,0.00046301,120]
[408851723,1774338854900,-1494.6,0.00046301,120]
[408851724,1774338854914,-1086.62,0.00046301,120]
[408851725,1774338854929,-946.8,0.00046301,120]
[408851726,1774338854944,-500.0,0.00046301,120]
[408851727,1774338854960,-713.74,0.00046301,120]
[408851728,1774338854976,-6072.1,0.00046301,120]
[408851729,1774338854991,-826.7,0.00046301,120]
[408851730,1774338855006,-552.86,0.00046301,120]
[408851731,1774338855021,-926.79,0.00046301,120]
[408851732,1774338855036,-2329.55,0.00046301,120]
[408851733,1774338855050,-1989.66,0.00046301,30]
[408851734,1774338855065,-847.68,0.00046301,120]
[408851735,1774338855079,-1646.81,0.00046301,120]
[408851736,1774338855094,-1090.68,0.00046301,120]
[408851737,1774338855108,-1885.93,0.00046301,120]
[408851738,1774338855122,-741.6,0.00046301,120]
[408851739,1774338855136,-391.50595175,0.00046301,120]
[408851740,1774338855151,-727.16,0.00046301,120]
[408851741,1774338855165,-712.06,0.00046301,120]
[408851742,1774338855179,-2107.35,0.00046301,120]
[408851743,1774338855194,-617.58,0.00046301,120]
[408851744,1774338855208,-2133.23,0.00046301,120]
[408851745,1774338855222,-5833.33,0.00046301,120]
[408851746,1774338855237,-1039.39,0.00046301,120]
[408851747,1774338855251,-2468.56,0.00046301,120]
[408851748,1774338855265,-1366.12,0.00046301,120]
[408851749,1774338855280,-1016.32,0.00046301,120]
[408851750,1774338855294,-784.59,0.00046301,120]
[408851751,1774338855307,-1478.69,0.00046301,120]
[408851752,1774338855321,-1259.9,0.00046301,120]
[408851753,1774338855335,-1107.99,0.00046301,120]
[408851754,1774338855350,-1114.05,0.00046301,120]
[408851755,1774338855365,-1519.93,0.00046301,120]
[408851756,1774338855378,-646.06,0.00046301,120]
[408851757,1774338855392,-1266.58,0.00046301,120]
[408851758,1774338855406,-1009.25,0.00046301,120]
[408851759,1774338855423,-707.37,0.00046301,120]
[408851760,1774338855436,-1156.03,0.00046301,14]
[408851761,1774338855451,-999.55,0.00046301,120]
[408851762,1774338855466,-970.63,0.00046301,120]
[408851763,1774338855479,-650.62,0.00046301,30]
[408851764,1774338855495,-725.53,0.00046301,120]
[408851765,1774338855510,-500.0,0.00046301,120]
[408851766,1774338855525,-1014.92,0.00046301,120]
[408851767,1774338855539,-2689.33,0.00046301,120]
[408851768,1774338855553,-500.0,0.00046301,120]
[408851769,1774338855567,-1544.85,0.00046301,120]
[408851770,1774338855580,-1269.14,0.00046301,120]
[408851771,1774338855594,-500.0,0.00046301,120]
[408851772,1774338855609,-665.15,0.00046301,120]
[408851773,1774338855623,-680.42,0.00046301,120]
[408851774,1774338855637,-500.0,0.00046301,120]
[408851775,1774338855651,-500.0,0.00046301,120]
[408851776,1774338855665,-1769.26,0.00046301,120]
[408851777,1774338855680,-512.42,0.00046301,120]
[408851778,1774338855694,-1705.77,0.00046301,120]
[408851779,1774338855708,-978.43,0.00046301,120]
[408851780,1774338855733,-245.83483534,0.00046301,120]
[408851781,1774338855753,-1215.44,0.00046301,120]
[408851782,1774338855771,-500.0,0.00046301,120]
[408851783,1774338855790,-1046.27,0.00046301,120]
[408851784,1774338855808,-500.0,0.00046301,120]
[408851785,1774338855827,-500.0,0.00046301,120]
[408851786,1774338855847,-1897.96,0.00046301,120]
[408851787,1774338855864,-770.58,0.00046301,120]
[408851788,1774338855882,-1960.33,0.00046301,120]
[408851789,1774338855900,-1613.72,0.00046301,120]
[408851790,1774338855917,-3056.27,0.00046301,120]
[408851791,1774338855934,-1228.99,0.00046301,120]
[408851792,1774338855950,-680.28,0.00046301,120]
[408851793,1774338855966,-769.44,0.00046301,120]
[408851794,1774338855982,-518.35586066,0.00046301,120]
[408851795,1774338855998,-500.0,0.00046301,120]
[408851796,1774338856013,-500.0,0.00046301,120]
[408851797,1774338856537,-1078.9,0.00046301,120]
[408851798,1774338856561,-1780.32,0.00046301,120]
[408851799,1774338856572,-1099.3,0.00046301,120]
[408851800,1774338856581,-699.82,0.00046301,120]
[408851801,1774338856591,-855.78,0.00046301,120]
[408851802,1774338856601,-759.17,0.00046301,120]
[408851803,1774338856610,-815.17,0.00046301,120]
[408851804,1774338856620,-931.09,0.00046301,120]
[408851805,1774338856629,-656.8,0.00046301,120]
[408851806,1774338856638,-614.51,0.00046301,120]
[408851807,1774338856648,-671.25,0.00046301,120]
[408851808,1774338856658,-1323.85,0.00046301,7]
[408851809,1774338856668,-500.0,0.00046301,14]
[408851810,1774338856678,-984.57,0.00046301,120]
[408851811,1774338856687,-500.0,0.00046301,120]
[408851812,1774338856696,-729.45,0.00046301,120]
[408851813,1774338856705,-926.4,0.00046301,120]
[408851814,1774338856714,-1291.11,0.00046301,120]
[408851815,1774338856723,-617.21,0.00046301,120]
[408851816,1774338856732,-560.4,0.00046301,120]
[408851817,1774338856743,-1726.06,0.00046301,120]
[408851818,1774338856752,-492.29,0.00046301,120]
[408851819,1774338856761,-500.0,0.00046301,120]
[408851820,1774338856771,-1356.13,0.00046301,120]
[408851821,1774338856780,-801.87,0.00046301,120]
[408851822,1774338856789,-821.12,0.00046301,120]
[408851823,1774338856798,-866.85,0.00046301,120]
[408851824,1774338856807,-500.0,0.00046301,120]
[408851825,1774338856816,-2922.62,0.00046301,60]
[408851826,1774338856826,-665.38,0.00046301,120]
[408851827,1774338856834,-644.49,0.00046301,120]
[408851828,1774338856844,-719.59,0.00046301,120]
[408851829,1774338856853,-4166.66,0.00046301,120]
[408851830,1774338856862,-679.57,0.00046301,120]
[408851831,1774338856871,-599.93,0.00046301,120]
[408851832,1774338856880,-1432.07,0.00046301,120]
[408851833,1774338856890,-730.01,0.00046301,120]
[408851834,1774338856899,-883.47,0.00046301,120]
[408851835,1774338856908,-508.87,0.00046301,120]
[408851836,1774338856917,-354.88238406,0.00046301,120]
[408851837,1774338856926,-759.73,0.00046301,120]
[408851838,1774338856936,-1171.93,0.00046301,120]
[408851839,1774338856945,-749.74,0.00046301,120]
[408851840,1774338856953,-892.78,0.00046301,120]
[408851841,1774338856963,-978.13,0.00046301,120]
[408851842,1774338856973,-674.49,0.00046301,120]
[408851843,1774338856982,-1973.42,0.00046301,120]
[408851844,1774338856991,-1044.01,0.00046301,120]
[408851845,1774338857000,-1355.12,0.00046301,120]
[408851846,1774338857010,-500.0,0.00046301,120]
[408851847,1774338857019,-786.73,0.00046301,120]
[408851848,1774338857028,-1476.03,0.00046301,120]
[408851849,1774338857038,-647.98,0.00046301,120]
[408851850,1774338857047,-947.33,0.00046301,120]
[408851851,1774338857057,-924.76,0.00046301,120]
[408851852,1774338857066,-590.04,0.00046301,120]
[408851853,1774338857076,-1633.92,0.00046301,120]
[408851854,1774338857085,-1295.04,0.00046301,120]
[408851855,1774338857095,-1441.35,0.00046301,60]
[408851856,1774338857104,-1951.73,0.00046301,120]
[408851857,1774338857114,-588.11,0.00046301,120]
[408851858,1774338857123,-2782.79,0.00046301,120]
[408851859,1774338857133,-605.44,0.00046301,120]
[408851860,1774338857142,-894.69,0.00046301,120]
[408851861,1774338857151,-525.27,0.00046301,120]
[408851862,1774338857161,-500.0,0.00046301,120]
[408851863,1774338857170,-1730.58,0.00046301,120]
[408851864,1774338857180,-517.76,0.00046301,120]
[408851865,1774338857189,-1269.84,0.00046301,120]
[408851866,1774338857198,-1536.15,0.00046301,120]
[408851867,1774338857208,-600.11,0.00046301,120]
[408851868,1774338857218,-1493.36,0.00046301,120]
[408851869,1774338857227,-1551.97,0.00046301,120]
[408851870,1774338857236,-632.12,0.00046301,120]
[408851871,1774338857248,-724.43,0.00046301,120]
[408851872,1774338857257,-2431.7,0.00046301,120]
[408851873,1774338857267,-1747.14,0.00046301,120]
[408851874,1774338857276,-1632.69,0.00046301,120]
[408851875,1774338857285,-1186.56,0.00046301,120]
[408851876,1774338857295,-1598.01,0.00046301,120]
[408851877,1774338857304,-500.0,0.00046301,120]
[408851878,1774338857314,-500.0,0.00046301,120]
[408851879,1774338857323,-517.15,0.00046301,120]
[408851880,1774338857333,-1075.02,0.00046301,120]
[408851881,1774338857343,-1616.03,0.00046301,120]
[408851882,1774338857352,-1428.85,0.00046301,120]
[408851883,1774338857361,-500.0,0.00046301,120]
[408851884,1774338857371,-561.63402845,0.00046301,120]
[408851885,1774338857381,-665.63,0.00046301,120]
[408851886,1774338857390,-866.03,0.00046301,120]
[408851887,1774338857399,-1926.05,0.00046301,120]
[408851888,1774338857410,-2687.41,0.00046301,120]
[408851889,1774338857423,-728.07,0.00046301,120]
[408851890,1774338857432,-638.16,0.00046301,120]
[408851891,1774338857442,-500.0,0.00046301,120]
[408851892,1774338857452,-604.38,0.00046301,120]
[408851893,1774338857461,-1493.48,0.00046301,30]
[408851894,1774338857470,-801.43,0.00046301,120]
[408851895,1774338857480,-752.4,0.00046301,120]
[408851896,1774338857491,-552.47,0.00046301,120]
[408851897,1774338857500,-995.77,0.00046301,120]
[408851898,1774338857510,-500.0,0.00046301,120]
[408851899,1774338857519,-878.89,0.00046301,120]
[408851900,1774338857529,-2173.76,0.00046301,120]
[408851901,1774338857538,-1298.61,0.00046301,120]
[408851902,1774338857547,-1791.61,0.00046301,120]
[408851903,1774338857556,-1260.51,0.00046301,120]
[408851904,1774338857565,-663.27,0.00046301,120]
[408851905,1774338857574,-500.0,0.00046301,120]
[408851906,1774338857583,-1454.94,0.00046301,120]
[408851907,1774338857592,-1108.88,0.00046301,120]
[408851908,1774338857601,-1258.26,0.00046301,120]
[408851909,1774338857610,-500.0,0.00046301,120]
[408851910,1774338857619,-631.57,0.00046301,120]
[408851911,1774338857628,-1791.18,0.00046301,120]
[408851912,1774338857638,-514.08,0.00046301,120]
[408851913,1774338857647,-585.76,0.00046301,120]
[408851914,1774338857657,-1447.52,0.00046301,120]
[408851915,1774338857666,-1601.87,0.00046301,120]
[408851916,1774338857676,-634.53,0.00046301,120]
[408851917,1774338857685,-500.0,0.00046301,120]
[408851918,1774338857695,-472.36462562,0.00046301,120]
[408851919,1774338857704,-514.43,0.00046301,120]
[408851920,1774338857713,-1530.3,0.00046301,120]
[408851921,1774338857722,-1437.77,0.00046301,120]
[408851922,1774338857732,-735.64,0.00046301,120]
[408851923,1774338857742,-798.73,0.00046301,120]
[408851924,1774338857752,-534.31,0.00046301,120]
[408851925,1774338857762,-2864.08,0.00046301,120]
[408851926,1774338857771,-500.0,0.00046301,120]
[408851927,1774338857781,-800.61,0.00046301,120]
[408851928,1774338857790,-500.0,0.00046301,120]
[408851929,1774338857800,-500.0,0.00046301,120]
[408851930,1774338857809,-1519.14,0.00046301,120]
[408851931,1774338857818,-971.22,0.00046301,120]
[408851932,1774338857828,-2175.73,0.00046301,120]
[408851933,1774338857838,-651.63,0.00046301,120]
[408851934,1774338857847,-579.61,0.00046301,120]
[408851935,1774338857856,-500.0,0.00046301,120]
[408851936,1774338857865,-769.19,0.00046301,120]
[408851937,1774338857875,-666.77,0.00046301,120]
[408851938,1774338857885,-1046.52,0.00046301,120]
[408851939,1774338857894,-1404.43,0.00046301,120]
[408851940,1774338857904,-547.19,0.00046301,120]
[408851941,1774338857913,-613.47,0.00046301,120]
[408851942,1774338857925,-664.14,0.00046301,120]
[408851943,1774338857935,-500.55,0.00046301,120]
[408851944,1774338857945,-1409.42,0.00046301,120]
[408851945,1774338857955,-500.0,0.00046301,120]
[408851946,1774338857966,-1958.04,0.00046301,120]
[408851947,1774338857976,-845.98,0.00046301,120]
[408851948,1774338857987,-788.97,0.00046301,120]
[408851949,1774338857996,-979.08,0.00046301,120]
[408851950,1774338858006,-2271.51,0.00046301,120]
[408851951,1774338858017,-798.9,0.00046301,120]
[408851952,1774338858027,-785.73,0.00046301,120]
[408851953,1774338858036,-1319.48,0.00046301,120]
[408851954,1774338858045,-898.9,0.00046301,120]
[408851955,1774338858055,-1026.81,0.00046301,120]
[408851956,1774338858065,-896.49,0.00046301,2]
[408851957,1774338858074,-591.09,0.00046301,120]
[408851958,1774338858084,-1571.69,0.00046301,120]
[408851959,1774338858093,-951.54,0.00046301,120]
[408851960,1774338858102,-1576.67,0.00046301,120]
[408851961,1774338858111,-533.43,0.00046301,120]
[408851962,1774338858121,-1797.77,0.00046301,120]
[408851963,1774338858131,-641.68,0.00046301,30]
[408851964,1774338858140,-908.05,0.00046301,120]
[408851965,1774338858150,-500.0,0.00046301,120]
[408851966,1774338858159,-978.03,0.00046301,120]
[408851967,1774338858169,-500.0,0.00046301,120]
[408851968,1774338858179,-1254.4,0.00046301,120]
[408851969,1774338858189,-890.53,0.00046301,120]
[408851970,1774338858199,-794.03,0.00046301,120]
[408851971,1774338858210,-500.0,0.00046301,120]
[408851972,1774338858219,-588.33,0.00046301,120]
[408851973,1774338858229,-2073.54,0.00046301,120]
[408851974,1774338858238,-954.83,0.00046301,120]
[408851975,1774338858248,-642.99,0.00046301,120]
[408851976,1774338858258,-945.89,0.00046301,120]
[408851977,1774338858268,-2204.1,0.00046301,120]
[408851978,1774338858278,-610.5,0.00046301,120]
[408851979,1774338858289,-1685.9,0.00046301,120]
[408851980,1774338858299,-2030.17,0.00046301,30]
[408851981,1774338858308,-2121.36,0.00046301,120]
[408851982,1774338858318,-534.01,0.00046301,120]
[408851983,1774338858328,-1204.77,0.00046301,120]
[408851984,1774338858337,-2554.76,0.00046301,120]
[408851985,1774338858346,-1000.85,0.00046301,120]
[408851986,1774338858357,-618.78,0.00046301,120]
[408851987,1774338858366,-976.45,0.00046301,120]
[408851988,1774338858376,-659.65,0.00046301,120]
[408851989,1774338858385,-1990.0,0.00046301,120]
[408851990,1774338858394,-1087.07,0.00046301,120]
[408851991,1774338858404,-758.91,0.00046301,120]
[408851992,1774338858414,-861.35,0.00046301,120]